fUST/lending_fUST_20240720
["ID","MTS","AMOUNT","RATE_DAILY","PERIOD"]
[332708923,1721471440940,-353.85423939,0.00015,2]
[332708926,1721471440950,-2426.31493042,0.00015,2]
[332708929,1721471440960,-1107.54053113,0.00015,2]
[332708931,1721471440969,-172.8894,0.00015101,2]
[332708933,1721471440982,-172.8894,0.00015211,2]
[332708935,1721471440992,-172.8894,0.00015321,2]
[332708937,1721471441001,-172.8894,0.00015431,2]
[332708939,1721471441011,-172.8894,0.00015541,2]
[332708940,1721471441021,-8448.91917637,0.00015708,2]
[332708941,1721471441031,-4057.73759565,0.00015708,2]
[332708942,1721471441041,-175.38734149,0.00015708,2]
[332708943,1721471441052,-848.26931223,0.00015708,2]
[332708944,1721471441062,-155.54340879,0.00015708,2]
[332708945,1721471441072,-196.48200413,0.0001571,2]
[332708946,1721471441083,-1044.05000901,0.00015712,2]
[332708947,1721471441092,-403.19686744,0.00015712,2]
[332708948,1721471441102,-184.37300868,0.00015744,2]
[332708949,1721471441111,-201.97388125,0.00015744,2]
[332708950,1721471441121,-154.72922386,0.00015746,2]
[332708951,1721471441130,-154.72922386,0.00015746,2]
[332708952,1721471441140,-154.72922386,0.00015751,2]
[332708953,1721471441149,-154.72922386,0.00015751,2]
[332708954,1721471441159,-201.00483074,0.00015751,2]
[332708955,1721471441168,-828.14530605,0.0001576,2]
[332708956,1721471441178,-151.825824,0.00015791,2]
[332708957,1721471441187,-151.825823,0.00015791,2]
[332708958,1721471441196,-158.774847,0.00015791,2]
[332708959,1721471441206,-151.825823,0.00015791,2]
[332708960,1721471441215,-192.92904,0.00015791,2]
[332708961,1721471441224,-240.48487395,0.00015851,2]
[332708962,1721471441233,-196.20580808,0.00015851,2]
[332708963,1721471441242,-153.0,0.0001589,2]
[332708964,1721471441252,-153.0,0.0001589,2]
[332708965,1721471441261,-155.73708013,0.00015952,2]
[332708966,1721471441271,-154.72922386,0.00015952,2]
[332708967,1721471441280,-304.27809575,0.00015954,2]
[332708968,1721471441290,-663.36487868,0.00015954,2]
[332708969,1721471441302,-322.67509661,0.00015954,2]
[332708970,1721471441311,-154.72922386,0.00016038,2]
[332708971,1721471441320,-154.72922386,0.00016038,2]
[332708972,1721471441330,-343.38165134,0.00016051,2]
[332708973,1721471441339,-3810.48355767,0.00016134,2]
[332708974,1721471441348,-154.72922386,0.00016159,2]
[332708975,1721471441357,-859.20203886,0.00016338,2]
[332708976,1721471441367,-11922.08082253,0.000164,2]
[332708993,1721471444360,-4076.52713755,0.000164,2]
[332709006,1721471444449,162.85283202,0.00014691,2]
[332709014,1721471458401,848.26931223,9.999e-05,2]
[332709015,1721471543115,155.31248135,0.0001212,2]
[332709016,1721471550922,1847.6853048,0.00014,7]
[332709017,1721471550947,27195.63995209,0.00014,7]
[332709018,1721471583708,195.83829223,0.00014,2]
[332709019,1721471592688,3000.0,0.000225,30]
[332709021,1721471725936,240.48487395,9.999e-05,2]
[332709022,1721471744556,720.01545952,9.999e-05,2]
[332709023,1721471754823,166.80286009,9.999e-05,2]
[332709024,1721471759443,1625.09007099,9.999e-05,2]
[332709026,1721471760901,3780.83916095,9.999e-05,2]
[332709027,1721471774451,1625.09007099,9.999e-05,2]
[332709028,1721471777772,200.0,0.0001212,2]
[332709029,1721471778403,239.70440358,0.0001212,2]
[332709030,1721471806406,2704.30414059,0.0001212,2]
[332709031,1721471885458,1625.09007099,0.0001212,2]
[332709032,1721471925812,304.27809575,9.999e-05,2]
[332709033,1721471928409,322.67509661,9.999e-05,2]
[332709034,1721471932568,493.57135447,9.999e-05,2]
[332709035,1721471942004,155.73708013,9.999e-05,2]
[332709036,1721471966994,1813.46582567,0.0001212,2]
[332709037,1721471967940,240.48487395,9.999e-05,2]
[332709038,1721471969194,155.04352089,0.0001212,2]
[332709039,1721471981085,372.89452671,0.0001212,2]
[332709040,1721471982670,273.37336231,9.9e-05,2]
[332709041,1721471984405,526.26848513,0.0001212,2]
[332709042,1721471984477,1625.09007099,9.999e-05,2]
[332709043,1721471991294,273.37336231,9.9e-05,2]
[332709044,1721471991865,598.66286783,0.0001212,2]
[332709045,1721471994607,218.24180995,0.0001212,2]
[332709046,1721471997243,154.72922386,0.0001212,2]
[332709047,1721471998576,391.80627157,9.999e-05,2]
[332709048,1721471999580,273.37336231,9.9e-05,2]
[332709049,1721472008206,273.37336231,9.9e-05,2]
[332709050,1721472013579,391.80627157,9.999e-05,2]
[332709051,1721472017088,500.53764773,0.0001212,2]
[332709052,1721472017257,273.37336231,9.9e-05,2]
[332709053,1721472019135,154.72922386,0.0001212,2]
[332709054,1721472025208,273.37336231,9.9e-05,2]
[332709055,1721472034656,273.37336231,9.9e-05,2]
[332709056,1721472035985,1625.09007099,0.00012,2]
[332709057,1721472037315,201.97388125,0.00012,2]
[332709058,1721472042573,273.37336231,9.9e-05,2]
[332709059,1721472050215,196.48200413,0.00012,2]
[332709060,1721472051419,155.54340879,0.00012,2]
[332709061,1721472053110,273.37336231,9.9e-05,2]
[332709062,1721472053620,184.37300868,0.00012,2]
[332709063,1721472057643,524.37521141,0.00012,2]
[332709064,1721472061053,273.37336231,9.9e-05,2]
[332709065,1721472062776,2105.56965168,0.00012,2]
[332709067,1721472150537,1625.09007099,0.00012,2]
[332709068,1721472165981,3777.63299636,0.00012,2]
[332709069,1721472167235,154.72922386,9.999e-05,2]
[332709071,1721472174055,273.37336231,9.9e-05,2]
[332709072,1721472174447,6814.10426376,0.0001212,2]
[332709073,1721472174501,154.72922386,0.0001212,2]
[332709074,1721472182514,273.37336231,9.9e-05,2]
[332709075,1721472184521,341.5888685,0.0001212,2]
[332709076,1721472186436,240.41852834,0.0001212,2]
[332709077,1721472187771,5197.79699301,0.0001212,2]
[332709078,1721472187793,137.77695212,0.0001212,2]
[332709079,1721472190691,273.37336231,9.9e-05,2]
[332709080,1721472190884,294.65667472,0.0001212,2]
[332709081,1721472192139,206.08103619,0.0001212,2]
[332709082,1721472194365,3000.0,0.000225,30]
[332709083,1721472196534,2105.76943121,0.0001212,2]
[332709084,1721472198566,2150.39056502,0.0001212,2]
[332709085,1721472200490,1625.09007099,0.0001212,2]
[332709086,1721472202536,246.502,0.0001212,2]
[332709087,1721472204419,154.72922386,0.0001212,2]
[332709088,1721472213042,2892.34062074,0.0001212,2]
[332709089,1721472213482,273.37336231,9.9e-05,2]
[332709090,1721472221806,273.37336231,9.9e-05,2]
[332709091,1721472227449,154.72922386,0.0001212,2]
[332709092,1721472230271,273.37336231,9.9e-05,2]
[332709093,1721472234448,313.86205086,0.0001212,2]
[332709094,1721472234495,159.90982277,9.999e-05,2]
[332709095,1721472240733,155.07333397,0.0001212,2]
[332709096,1721472251482,1625.09007099,0.00012,2]
[332709097,1721472255481,4422.91963981,0.00012,2]
[332709098,1721472282436,154.74467129,0.00012,2]
[332709099,1721472342147,-360.01594427,0.00014545,2]
[332709101,1721472401400,154.74467129,9.999e-05,2]
[332709102,1721472425183,-300.0,0.00014544,2]
[332709103,1721472425205,-1316.30930235,0.00014545,2]
[332709104,1721472429225,-195.83829223,0.00014545,2]
[332709105,1721472429247,-426.21539807,0.00014545,2]
[332709106,1721472434095,-158.11882226,0.00014545,2]
[332709107,1721472434115,-1625.09007099,0.00014545,2]
[332709108,1721472434136,-201.67143674,0.00014545,2]
[332709109,1721472434157,-443.9160871,0.00014545,2]
[332709110,1721472434184,-126.94989422,0.00014545,2]
[332709111,1721472434205,-166.666666,0.00014795,2]
[332709112,1721472434231,-344.44752286,0.00015,2]
[332709113,1721472434259,-357.63700347,0.00015,2]
[332709114,1721472444103,-689.0753708,0.00015,2]
[332709115,1721472444126,-167.2780026,0.00015047,2]
[332709116,1721472444147,-155.97882791,0.0001571,2]
[332709117,1721472444169,-663.36487868,0.00015712,2]
[332709118,1721472444190,-196.20580808,0.00015712,2]
[332709119,1721472444211,-54.19375991,0.00015712,2]
[332709125,1721472603520,848.26931223,9.999e-05,2]
[332709126,1721472609445,403.19686744,9.999e-05,2]
[332709127,1721472623965,663.36487868,9.999e-05,2]
[332709143,1721472631946,-287.92979717,0.00015,2]
[332709145,1721472631956,-1107.54053113,0.00015,2]
[332709147,1721472631966,-300.0,0.00015708,2]
[332709149,1721472631975,-201.00483074,0.00015708,2]
[332709151,1721472631985,-201.00483074,0.00015708,2]
[332709153,1721472631994,-154.74467129,0.00015708,2]
[332709155,1721472632004,-408.62137003,0.0001571,2]
[332709157,1721472632013,-300.0,0.00015711,2]
[332709159,1721472632023,-195.83829223,0.00015712,2]
[332709161,1721472632032,-101.94769808,0.00015712,2]
[332709166,1721472632066,1585.16894165,9.999e-05,2]
[332709169,1721472632086,39.92112934,9.999e-05,2]
[332709173,1721472632118,404.95448152,0.0001212,2]
[332709290,1721472647011,1625.09007099,9.999e-05,2]
[332709291,1721472649979,848.26931223,0.0001212,2]
[332709292,1721472653939,403.19686744,0.0001212,2]
[332709293,1721472671576,243.96012835,0.0001212,2]
[332709294,1721472671604,822.59166188,0.0001212,2]
[332709295,1721472675722,2631.89471923,0.0001212,2]
[332709296,1721472675746,453.5149522,0.0001212,2]
[332709297,1721472676417,663.36487868,0.00014691,2]
[332709298,1721472680464,292.46996353,0.00014691,2]
[332709299,1721472680757,195.83829223,0.00014691,2]
[332709300,1721472688826,154.74467129,0.00014691,2]
[332709301,1721472690077,886.94388172,0.00014691,2]
[332709302,1721472690618,1522.76336035,0.00014691,2]
[332709303,1721472690640,102.32671064,0.00014691,2]
[332709304,1721472693953,403.19686744,0.00014691,2]
[332709305,1721472704377,154.74467129,0.00014691,2]
[332709306,1721472704971,848.26931223,0.00014691,2]
[332709307,1721472730725,309.85048466,0.00014691,2]
[332709308,1721472757238,154.74467129,9.999e-05,2]
[332709309,1721472787265,154.74467129,9.999e-05,2]
[332709310,1721472794211,3000.0,0.000225,30]
[332709311,1721472807294,3845.45864007,0.000225,30]
[332709312,1721472828012,483.86116213,9.999e-05,2]
[332709313,1721472833749,154.74467129,0.0001212,2]
[332709314,1721472898240,154.74467129,9.999e-05,2]
[332709315,1721472913176,154.74467129,9.999e-05,2]
[332709316,1721472960279,3780.83916095,0.0001212,2]
[332709317,1721472966673,154.72922386,0.0001212,2]
[332709318,1721472973129,700.0,0.0002501,120]
[332709319,1721472980545,175.38734149,0.0001212,2]
[332709320,1721472981504,8448.91917637,0.0001212,2]
[332709321,1721472981535,1624.66124056,9.999e-05,2]
[332709322,1721472990253,4057.73759565,0.0001212,2]
[332709323,1721472997484,3774.42683177,0.0001212,2]
[332709324,1721473020618,392.04070002,9.999e-05,2]
[332709325,1721473030428,158.58513561,9.999e-05,2]
[332709326,1721473061514,1269.49482639,9.999e-05,2]
[332709327,1721473062491,359.01191263,0.0001212,2]
[332709331,1721473159192,198.49632226,9.999e-05,2]
[332709332,1721473188134,1906.85890985,0.0001212,2]
[332709333,1721473190606,309.25780362,9.999e-05,2]
[332709334,1721473358722,805.10062101,0.0001212,2]
[332709335,1721473399110,3000.0,0.000225,30]
[332710023,1721473490949,248.75711548,9.999e-05,2]
[332710182,1721473508686,180.23802632,9.999e-05,2]
[332710367,1721473550142,-3350.2689158,0.00014019,2]
[332710368,1721473550163,-301.8615653,0.00014034,2]
[332710369,1721473550184,-114.02925618,0.00014476,2]
[332710370,1721473558539,159.95554966,9.999e-05,2]
[332710371,1721473561373,542.35957529,9.999e-05,2]
[332710372,1721473568691,251.17253674,0.0001212,2]
[332710373,1721473604610,154.72922386,9.999e-05,2]
[332710374,1721473613060,159.43800378,0.0001212,2]
[332710375,1721473631276,162.53612997,9.999e-05,2]
[332710376,1721473643097,-47.38751882,0.00014476,2]
[332710377,1721473643119,-161.416775,0.00014552,2]
[332710378,1721473643142,-161.416775,0.00014627,2]
[332710379,1721473643163,-154.72922386,0.00014691,2]
[332710380,1721473643184,-161.416775,0.00014703,2]
[332710381,1721473643206,-161.416775,0.00014778,2]
[332710382,1721473643227,-166.666666,0.00014795,2]
[332710383,1721473643248,-161.416775,0.00014854,2]
[332710384,1721473643270,-161.416775,0.00014929,2]
[332710385,1721473643291,-287.92979717,0.00015,2]
[332710386,1721473643312,-273.22967018,0.00015,2]
[332710387,1721473646092,-135.39169985,0.00015,2]
[332710388,1721473646116,-985.25035372,0.00015,2]
[332710389,1721473648107,-122.29017741,0.00015,2]
[332710390,1721473648133,-161.416775,0.00015004,2]
[332710391,1721473648155,-17.18601717,0.0001508,2]
[332710393,1721473651194,-144.23075783,0.0001508,2]
[332710394,1721473651216,-322.54217679,0.000151,2]
[332710395,1721473651238,-33.22706538,0.00015155,2]
[332710396,1721473654111,-128.18970962,0.00015155,2]
[332710397,1721473654137,-161.416775,0.00015231,2]
[332710398,1721473654159,-1708.93220013,0.00015454,2]
[332710400,1721473675972,518.89796857,9.999e-05,2]
[332710401,1721473680506,154.72922386,9.999e-05,2]
[332710402,1721473685584,156.01097213,0.00018369,30]
[332710403,1721473705992,518.89796857,9.999e-05,2]
[332710404,1721473710034,150.5,0.00016428,62]
[332710405,1721473710063,341.5888685,9.999e-05,2]
[332710406,1721473710507,150.5,0.00016418,62]
[332710407,1721473710969,150.5,0.00016408,62]
[332710408,1721473711498,233.34,0.0001739,62]
[332710415,1721473727954,154.72922386,0.0001212,2]
[332710416,1721473757535,156.01097213,0.0001212,30]
[332710417,1721473762568,341.5888685,0.0001212,2]
[332710423,1721473785504,156.17588773,0.00014691,2]
[332710424,1721473790961,154.72922386,0.0001212,2]
[332710425,1721473797193,726.55100361,9.999e-05,2]
[332710426,1721473807241,726.55100361,9.999e-05,2]
[332710427,1721473807562,428.30567769,0.00014691,2]
[332710428,1721473819575,540.58085513,0.00014691,2]
[332710429,1721473821431,154.94951165,0.00014691,2]
[332710430,1721473830340,270.56796822,0.00014691,2]
[332710431,1721473830361,752.67359644,0.00014691,2]
[332710472,1721473832351,-553.81786026,0.00015,2]
[332710474,1721473832362,-385.82327746,0.00015,2]
[332710476,1721473832373,-120.55713635,0.00015,2]
[332710482,1721473837259,2808.93640356,0.00014691,2]
[332710483,1721473837281,2670.53422483,0.00014691,2]
[332710586,1721473838796,-902.70604439,0.00015,2]
[332710588,1721473838806,-343.38165134,0.00015444,2]
[332710590,1721473838816,-300.0,0.00015706,2]
[332710614,1721473839036,-500.0,0.00015706,2]
[332710616,1721473839048,-500.0,0.00015706,2]
[332710618,1721473839058,-373.12171713,0.00015707,2]
[332710626,1721473839124,-11971.26681758,0.00015707,2]
[332710631,1721473839161,-6746.7484302,0.00015707,2]
[332710675,1721473840185,161.89877637,0.00014691,2]
[332710677,1721473840403,-9332.4290345,0.00015707,2]
[332710678,1721473840412,-2137.72573135,0.00015708,2]
[332710679,1721473840422,-1161.38988049,0.00015708,2]
[332710680,1721473840431,-9635.93595369,0.00015708,2]
[332710681,1721473840440,-2708.88208775,0.00015708,2]
[332710682,1721473840450,-404.21603118,0.00015708,2]
[332710683,1721473840459,-533.21232689,0.00015708,2]
[332710684,1721473840469,-663.36487868,0.0001571,2]
[332710685,1721473840480,-663.36487868,0.0001571,2]
[332710686,1721473840489,-848.26931223,0.0001571,2]
[332710687,1721473840499,-848.26931223,0.00015712,2]
[332710688,1721473840508,-403.19686744,0.00015712,2]
[332710689,1721473840517,-828.14530605,0.00015721,2]
[332710690,1721473840527,-209.59381941,0.00015744,2]
[332710691,1721473840536,-154.72922386,0.00015744,2]
[332710692,1721473840545,-154.72922386,0.00015744,2]
[332710693,1721473840554,-941.37701693,0.00015746,2]
[332710694,1721473840563,-233.348127,0.00015751,2]
[332710695,1721473840573,-233.348127,0.00015751,2]
[332710696,1721473840583,-152.0,0.00015751,2]
[332710697,1721473840592,-154.72922386,0.00015751,2]
[332710698,1721473840602,-157.929689,0.00015791,2]
[332710699,1721473840611,-157.929689,0.00015791,2]
[332710700,1721473840621,-189.703935,0.00015791,2]
[332710701,1721473840630,-151.825823,0.00015791,2]
[332710702,1721473840640,-192.92904,0.00015791,2]
[332710703,1721473840649,-158.774847,0.00015791,2]
[332710704,1721473840658,-155.0586276,0.0001589,2]
[332710705,1721473840668,-153.0,0.000159,2]
[332710706,1721473840677,-153.0,0.000159,2]
[332710707,1721473840686,-4861.2592364,0.00015935,2]
[332710708,1721473840696,-5513.05891957,0.0001611,2]
[332710709,1721473840705,-151.0,0.00016164,2]
[332710710,1721473840714,-189.703935,0.00016186,2]
[332710711,1721473840723,-151.825823,0.00016186,2]
[332710712,1721473840733,-530.31617628,0.000163,3]
[332710713,1721473840742,-859.20203886,0.00016338,2]
[332710714,1721473840751,-233.348127,0.00016338,2]
[332710715,1721473840760,-233.348127,0.00016338,2]
[332710716,1721473840770,-1742.367565,0.00016338,2]
[332710717,1721473840779,-1784.92253188,0.0001639,2]
[332710718,1721473840788,-53017.32854456,0.0001639,5]
[332710719,1721473840797,-1784.92253188,0.0001639,2]
[332710720,1721473840806,-468.58308017,0.00016399,2]
[332710721,1721473840815,-218.56751472,0.00016399,2]
[332710722,1721473840824,-355.35666026,0.00016399,2]
[332710723,1721473840834,-256.84955259,0.00016399,2]
[332710724,1721473840843,-500.0,0.00016399,2]
[332710725,1721473840853,-500.0,0.00016399,2]
[332710726,1721473840863,-500.0,0.00016399,2]
[332710727,1721473840873,-500.0,0.00016399,2]
[332710728,1721473840882,-500.0,0.00016399,2]
[332710729,1721473840891,-500.0,0.00016399,2]
[332710730,1721473840900,-500.0,0.00016399,2]
[332710731,1721473840910,-496.42410746,0.00016399,2]
[332710732,1721473840919,-500.0,0.00016399,2]
[332710733,1721473840928,-500.0,0.00016399,2]
[332710734,1721473840938,-500.0,0.00016399,2]
[332710735,1721473840950,-500.0,0.00016399,2]
[332710736,1721473840959,-500.0,0.00016399,2]
[332710737,1721473840969,-500.0,0.00016399,2]
[332710738,1721473840979,-502.00013265,0.00016399,2]
[332710739,1721473840990,-500.0,0.00016399,2]
[332710740,1721473841001,-200.0,0.00016399,2]
[332710741,1721473841011,-500.0,0.00016399,2]
[332710742,1721473841022,-233.348127,0.00016399,2]
[332710743,1721473841035,-233.348127,0.00016399,2]
[332710744,1721473841047,-35114.66594814,0.000164,2]
[332710779,1721473843478,-196.20580808,0.00015708,2]
[332710780,1721473843487,-222.25638495,0.000164,2]
[332710781,1721473844425,147.2020988,9.999e-05,2]
[332710782,1721473844446,257.01393238,9.999e-05,2]
[332713226,1721473871518,156.01097213,0.00017807,30]
[332721886,1721473990112,150.74373565,0.00020054,30]
[332721887,1721473990166,150.74373565,0.00019653,120]
[332721888,1721473993041,3000.0,0.000225,30]
[332721889,1721474002629,4477.28,0.0002501,120]
[332721890,1721474021284,884.485,0.0002451,120]
[332721891,1721474021326,884.485,0.0002451,120]
[332721892,1721474021373,884.485,0.0002451,120]
[332721893,1721474021427,884.486,0.0002451,120]
[332721894,1721474021483,884.485,0.0002451,120]
[332721895,1721474021715,1200.0,0.00024,60]
[332721896,1721474030385,209.59381941,9.999e-05,2]
[332721897,1721474034532,800.0,0.000225,30]
[332721898,1721474109718,941.37701693,9.999e-05,2]
[332721899,1721474195427,163.59936671,0.0001212,2]
[332721900,1721474211172,1038.52059317,0.0001212,2]
[332721901,1721474287221,150.72868836,0.00019936,30]
[332721902,1721474287275,150.72868836,0.00019537,120]
[332721923,1721474416066,156.01097213,0.00019537,30]
[332721924,1721474522173,156.01097213,0.00019537,30]
[332721925,1721474594310,3000.0,0.000225,30]
[332721927,1721474620160,156.01097213,0.00019537,30]
[332721928,1721474718093,156.01097213,0.00019537,30]
[332721929,1721474726943,150.74373565,0.00020094,30]
[332721931,1721474727012,150.74373565,0.00019692,120]
[332721933,1721474734134,156.01097213,0.00019537,30]
[332721939,1721474838352,-166.666666,0.00014795,2]
[332721940,1721474838376,-441.05855045,0.00015,2]
[332721941,1721474838397,-334.22438564,0.00015,2]
[332721942,1721474838420,-287.38821308,0.00015708,2]
[332721943,1721474838443,-2708.88208775,0.00015708,2]
[332721944,1721474838467,-300.0,0.00015709,2]
[332721945,1721474838491,-65.3761647,0.0001571,2]
[332721946,1721474839109,-2783.69217313,0.0001571,2]
[332721947,1721474839263,726.55100361,9.999e-05,2]
[332721948,1721474846155,-166.666668,0.0001571,2]
[332721949,1721474851185,-292.18486039,0.0001571,2]
[332721952,1721474912237,848.26931223,9.999e-05,2]
[332721966,1721474959062,1063.22640053,9.999e-05,2]
[332721967,1721474969105,816.60499379,0.0001212,2]
[332721971,1721474986848,155.05188196,0.0001212,2]
[332721972,1721474993201,1315.6,0.00024,60]
[332721975,1721475011742,196.20580808,9.999e-05,2]
[332721976,1721475014228,155.31248135,0.00014691,2]
[332721977,1721475014262,196.20580808,9.999e-05,2]
[332721978,1721475014314,156.06630466,0.00014691,2]
[332721979,1721475025284,787.31832419,0.00014691,2]
[332721980,1721475025306,1151.28167581,0.00014691,2]
[332722005,1721475033565,-647.08484553,0.00015712,2]
[332722026,1721475041419,-738.94939112,0.00015712,2]
[332722027,1721475041434,-613.96576335,0.00015712,2]
[332722028,1721475041444,-533.21232689,0.00015712,2]
[332722029,1721475041454,-154.72922386,0.00015712,2]
[332722030,1721475041466,-1044.05000901,0.00015744,2]
[332722031,1721475041475,-543.55167609,0.00015744,2]
[332722032,1721475041485,-600.0568444,0.00015851,2]
[332722033,1721475041495,-306.0,0.00016,2]
[332722034,1721475041504,-367.31035882,0.00016053,2]
[332722035,1721475041515,-151.10300864,0.00016058,2]
[332722036,1721475041524,-5303.4494987,0.00016061,2]
[332722037,1721475041534,-153.0,0.00016192,2]
[332722038,1721475041544,-153.0,0.00016192,2]
[332722039,1721475041553,-153.0,0.00016192,2]
[332722040,1721475041563,-153.0,0.00016192,2]
[332722041,1721475041572,-153.0,0.000162,2]
[332722042,1721475041582,-180.3981953,0.00016235,2]
[332722043,1721475041593,-724.77170156,0.00016328,2]
[332722044,1721475041603,-724.77170152,0.00016331,2]
[332722045,1721475041614,-724.77170152,0.00016333,2]
[332722046,1721475041625,-724.77170152,0.00016336,2]
[332722047,1721475041634,-984.42489897,0.00016338,2]
[332722048,1721475041643,-724.77170152,0.00016338,2]
[332722049,1721475041653,-4972.86709078,0.000164,2]
[332722050,1721475041663,-1408.0,0.0001641,2]
[332722051,1721475041672,-500.0,0.00016426,2]
[332722052,1721475041682,-550.0,0.00016426,2]
[332722053,1721475041692,-152.9972603,0.00016427,2]
[332722054,1721475041703,-500.0,0.00016427,2]
[332722055,1721475041714,-500.0,0.00016427,2]
[332722056,1721475041724,-328.00815612,0.00016427,2]
[332722057,1721475041735,-248.74966218,0.00016427,2]
[332722058,1721475041747,-179.79468682,0.00016427,2]
[332722059,1721475041757,-500.0,0.00016427,2]
[332722060,1721475041767,-500.0,0.00016427,2]
[332722061,1721475041777,-547.49687522,0.00016427,2]
[332722062,1721475041788,-500.0,0.00016427,2]
[332722063,1721475041798,-591.40009285,0.00016427,2]
[332722064,1721475041809,-500.0,0.00016427,2]
[332722065,1721475041819,-500.0,0.00016427,2]
[332722066,1721475041828,-500.0,0.00016427,2]
[332722067,1721475041838,-500.0,0.00016427,2]
[332722068,1721475041848,-400.0,0.00016427,2]
[332722069,1721475041858,-2879.25520725,0.00016428,2]
[332722130,1721475159385,533.21232689,9.999e-05,2]
[332722131,1721475161024,150.72868836,0.00019919,30]
[332722132,1721475161266,150.72868836,0.00019521,120]
[332722134,1721475193290,3000.0,0.000225,30]
[332722136,1721475259239,244.44196816,9.999e-05,2]
[332722137,1721475464420,2601.30034547,0.0001212,2]
[332722138,1721475492534,5417.13424742,0.0001212,2]
[332722139,1721475492561,9453.11961479,0.0001212,2]
[332722140,1721475544176,474.06142747,9.999e-05,2]
[332722144,1721475616626,492.90786688,9.999e-05,2]
[332722145,1721475628361,150.75878594,0.0001979,30]
[332722146,1721475628415,150.75878594,0.00019394,120]
[332722147,1721475630848,156.00050148,0.0001212,2]
[332722148,1721475734299,195.83944232,9.999e-05,2]
[332722149,1721475793335,4338.366553,0.000225,30]
[332722191,1721475985367,452.96284597,9.999e-05,2]
[332722192,1721476034132,-166.666666,0.00014795,2]
[332722193,1721476034154,-2865.4088412,0.00015042,2]
[332722194,1721476034175,-161.351508,0.00015158,2]
[332722195,1721476034196,-161.351508,0.00015553,2]
[332722196,1721476034217,-659.02359153,0.00015682,2]
[332722197,1721476034237,-1948.49551181,0.00015708,2]
[332722198,1721476050320,236.22452928,9.999e-05,2]
[332722199,1721476053120,-612.40009975,0.00015708,2]
[332722200,1721476053148,-162.14777041,0.00015708,2]
[332722201,1721476053169,-533.87031557,0.0001571,2]
[332722202,1721476053190,-346.15703621,0.00015751,2]
[332722203,1721476053211,-197.950571,0.00015791,2]
[332722204,1721476053232,-176.314721,0.00015791,2]
[332722205,1721476053254,-154.72922386,0.00015851,2]
[332722206,1721476053275,-154.72922386,0.00015851,2]
[332722207,1721476053297,-1044.05000901,0.00015851,2]
[332722208,1721476053319,-1044.05000901,0.00015851,2]
[332722209,1721476053342,-161.351508,0.00015948,2]
[332722210,1721476053363,-300.0,0.00015949,2]
[332722211,1721476053386,-300.0,0.00015951,2]
[332722212,1721476053409,-176.314721,0.00016054,2]
[332722213,1721476053432,-279.18392065,0.00016136,2]
[332722214,1721476054518,12487.85378504,9.999e-05,2]
[332722215,1721476054708,150.74373565,0.00020202,30]
[332722216,1721476054772,150.74373565,0.00019798,120]
[332722236,1721476232473,-367.31035882,0.00015913,2]
[332722237,1721476232483,-197.950571,0.00016186,2]
[332722238,1721476232493,-176.314721,0.00016317,2]
[332722239,1721476232503,-434.86302092,0.00016328,2]
[332722240,1721476232514,-595.36554206,0.00016328,2]
[332722241,1721476232532,-1182.27736618,0.00016328,2]
[332722242,1721476232544,-434.86302092,0.00016331,2]
[332722243,1721476232555,-434.86302092,0.00016333,2]
[332722244,1721476232567,-434.86302092,0.00016336,2]
[332722245,1721476232578,-885.9824091,0.00016338,2]
[332722246,1721476232587,-434.86302092,0.00016338,2]
[332722247,1721476232597,-500.0,0.00016427,2]
[332722248,1721476232607,-500.0,0.00016427,2]
[332722249,1721476232617,-157.90787223,0.00016427,2]
[332722250,1721476232626,-300.0,0.00016427,2]
[332722251,1721476232638,-28662.2135759,0.00016428,2]
[332722252,1721476232647,-472.117506,0.00016428,2]
[332722253,1721476232657,-472.117506,0.00016428,2]
[332722254,1721476232667,-151.0,0.00016428,2]